bitfinex-derivatives/quotes_ETHF0:USTF0_20230105
["timestamp","ask_amount","ask_price","bid_price","bid_amount"]
[1672898840836,1.78917036,1252.6,1252.4,7.12278027]
[1672898841044,1.78917036,1252.6,1252.5,6.30635726]
[1672898843154,1.78917036,1252.6,1252.5,9.51415726]
[1672898844835,2.38555581,1252.6,1252.5,9.89255934]
[1672898845147,4.88555581,1252.6,1252.5,7.50118235]
[1672898845566,4.88555581,1252.6,1252.5,9.89255934]
[1672898847048,2.38555581,1252.6,1252.5,9.89255934]
[1672898847783,2.38555581,1252.6,1252.5,7.50118235]
[1672898848094,2.38555581,1252.6,1252.5,9.89255934]
[1672898848299,2.38555581,1252.6,1252.5,7.50118235]
[1672898848725,2.38555581,1252.6,1252.5,9.89255934]
[1672898850933,2.38555581,1252.6,1252.5,6.68475934]
[1672898851246,2.38555581,1252.6,1252.5,9.89255934]
[1672898854929,2.38555581,1252.6,1252.5,8.09917699]
[1672898856292,2.38555581,1252.6,1252.5,9.89285995]
[1672898856825,2.38555581,1252.6,1252.5,8.09917699]
[1672898859233,2.38555581,1252.6,1252.5,4.89137699]
[1672898859552,2.38555581,1252.6,1252.5,8.09917699]
[1672898860077,2.38555581,1252.6,1252.5,4.89137699]
[1672898860282,2.38555581,1252.6,1252.5,5.59917699]
[1672898860493,2.38555581,1252.6,1252.5,7.39285176]
[1672898860701,5.36722798,1252.6,1252.5,5.00147477]
[1672898860916,2.98082396,1252.6,1252.5,6.19733154]
[1672898863651,2.98082396,1252.6,1252.5,4.40365677]
[1672898864601,5.48082396,1252.6,1252.5,4.40365677]
[1672898866076,5.48082396,1252.6,1252.5,6.19733154]
[1672898866597,2.98082396,1252.6,1252.5,6.19733154]
[1672898871334,2.98082396,1252.6,1252.5,2.98953154]
[1672898875537,2.98082396,1252.6,1252.5,2.99002298]
[1672898882691,2.98082396,1252.6,1252.5,1.79367477]
[1672898884263,2.98082396,1252.6,1252.5,5.00147477]
[1672898885114,2.98082396,1252.6,1252.5,6.19803278]
[1672898885322,2.98082396,1252.6,1252.5,6.19803558]
[1672898886269,2.98082396,1252.6,1252.5,6.19804807]
[1672898886582,2.98082396,1252.6,1252.5,5.00147477]
[1672898887325,2.98082396,1252.6,1252.5,1.79367477]
[1672898887631,2.98082396,1252.6,1252.5,6.19808932]
[1672898888059,2.98082396,1252.6,1252.5,5.00147477]
[1672898889103,2.98082396,1252.6,1252.5,6.19814198]
[1672898889527,6.08296384,1252.7,1252.5,6.19814198]
[1672898889735,2.98353529,1252.6,1252.5,6.19814198]
[1672898891208,2.98353529,1252.6,1252.5,2.99034198]
[1672898892573,6.08296384,1252.7,1252.5,2.99034198]
[1672898894361,6.08296384,1252.7,1252.5,1.19666721]
[1672898894574,6.08296384,1252.7,1252.5,2.99034198]
[1672898896887,6.08296384,1252.7,1252.6,1.19666721]
[1672898897199,6.08296384,1252.7,1252.6,3.69666721]
[1672898898042,6.08296384,1252.7,1252.6,1.19666721]
[1672898910449,3.58296384,1252.7,1252.6,1.19666721]
[1672898932509,7.75962172,1252.7,1252.6,1.19666721]
[1672898933143,3.58296384,1252.7,1252.6,1.19666721]
[1672898933772,7.75962172,1252.7,1252.6,1.19666721]
[1672898934194,3.58296384,1252.7,1252.6,1.19666721]
[1672898934615,7.75962172,1252.7,1252.6,1.19666721]
[1672898934825,3.58296384,1252.7,1252.6,1.19666721]
[1672898935035,3.58296384,1252.7,1252.6,2.99034198]
[1672898938610,3.58296384,1252.7,1252.6,1.19666721]
[1672898939136,3.58296384,1252.7,1252.6,2.99034198]
[1672898939969,3.58296384,1252.7,1252.6,1.19666721]
[1672898940387,3.58296384,1252.7,1252.6,2.99034198]
[1672898940598,2.5,1252.7,1252.6,1.79367477]
[1672898940809,5.7078,1252.7,1252.5,3.69752785]
[1672898941018,6.08296384,1252.6,1252.5,1.19752785]
[1672898941645,6.08296384,1252.6,1252.5,2.99120262]
[1672898941858,6.08296384,1252.6,1252.5,1.19752785]
[1672898942706,6.08296384,1252.6,1252.5,2.99120262]
[1672898945121,6.08296384,1252.6,1252.5,1.19752785]
[1672898945860,6.08296384,1252.6,1252.5,2.99120262]
[1672898946497,2.5,1252.6,1252.5,2.99120262]
[1672898949438,13.46742172,1252.6,1252.4,2.98480082]
[1672898949652,9.29076384,1252.6,1252.4,2.98480082]
[1672898953118,2.98436086,1252.5,1252.4,1.79367477]
[1672898953329,5.48436086,1252.5,1252.4,5.00147477]
[1672898953536,5.48436086,1252.5,1252.4,7.50147477]
[1672898953746,2.98436086,1252.5,1252.4,7.50147477]
[1672898954906,2.98436086,1252.5,1252.4,9.89285176]
[1672898955102,5.37174617,1252.5,1252.4,8.09917699]
[1672898955317,2.38738531,1252.5,1252.4,9.51418361]
[1672898956059,4.17808877,1252.5,1252.4,10.11202786]
[1672898956265,4.17805246,1252.5,1252.4,10.11202786]
[1672898956584,4.17805207,1252.5,1252.4,10.11202786]
[1672898957205,4.17801012,1252.5,1252.4,10.11202786]
[1672898960251,1.79062481,1252.5,1252.4,10.11202786]
[1672898961308,2.38738531,1252.5,1252.4,12.50478094]
[1672898961524,2.38738531,1252.5,1252.4,9.5155597]
[1672898962682,4.17769933,1252.5,1252.4,9.5155597]
[1672898962891,4.17769933,1252.5,1252.4,12.50478094]
[1672898964048,4.17769933,1252.5,1252.4,9.29698094]
[1672898964258,4.17769933,1252.5,1252.4,12.50478094]
[1672898965096,4.17769933,1252.5,1252.4,9.29698094]
[1672898965308,4.17769933,1252.5,1252.4,12.50478094]
[1672898966251,1.79031402,1252.5,1252.4,12.50478094]
[1672898966463,2.38738531,1252.5,1252.4,9.5155597]
[1672898972774,2.38738531,1252.5,1252.4,9.51553129]
[1672898973298,4.17763578,1252.5,1252.4,12.50475253]
[1672898973715,2.98381565,1252.5,1252.4,10.11199945]
[1672898973926,1.19356518,1252.5,1252.4,7.12277821]
[1672898974459,1.19356518,1252.5,1252.4,10.11309897]
[1672898974671,1.19356518,1252.5,1252.4,7.12277821]
[1672898975194,1.19356518,1252.5,1252.4,10.11246608]
[1672898975404,2.98381565,1252.6,1252.4,15.09577821]
[1672898975720,1.19356518,1252.6,1252.5,6.90447667]
[1672898976131,2.98381565,1252.6,1252.5,6.90447667]
[1672898977395,2.98381565,1252.6,1252.5,9.29549388]
[1672898977613,2.98381565,1252.6,1252.5,12.50329388]
[1672898978867,2.98381565,1252.6,1252.5,9.29549388]
[1672898979079,2.98381565,1252.6,1252.5,12.50329388]
[1672898979500,1.19356518,1252.6,1252.5,20.47629388]
[1672898979812,2.98381565,1252.6,1252.5,20.47629388]
[1672898981086,1.19356518,1252.6,1252.5,20.47629388]
[1672898981391,2.98381565,1252.6,1252.5,17.48679542]
[1672898981602,1.19356518,1252.6,1252.5,20.47629388]
[1672898981918,2.98381565,1252.6,1252.5,17.48679542]
[1672898984868,2.98381565,1252.6,1252.5,14.27899542]
[1672898985181,2.98381565,1252.6,1252.5,17.48679542]
[1672898993069,1.79025047,1252.6,1252.5,14.27899542]
[1672898993272,1.79025047,1252.6,1252.5,17.48679542]
[1672898993594,1.79025047,1252.6,1252.5,14.27899542]
[1672898993803,1.79025047,1252.6,1252.5,17.48679542]
[1672898994962,1.79025047,1252.6,1252.5,14.27899542]
[1672898995171,1.79025047,1252.6,1252.5,17.48679542]
[1672898996437,1.79025047,1252.6,1252.5,14.27899542]
[1672898996750,1.79025047,1252.6,1252.5,17.48679542]
[1672898998012,1.79025047,1252.6,1252.5,20.47629388]
[1672898999582,2.98348204,1252.6,1252.5,18.08527667]
[1672898999791,1.19323157,1252.6,1252.5,15.09577821]
[1672899001373,2.98348204,1252.7,1252.5,15.09577821]
[1672899001584,2.98348204,1252.7,1252.6,17.26814811]
[1672899002003,1.79025047,1252.7,1252.6,17.26814811]
[1672899002213,2.98347362,1252.7,1252.6,14.87696149]
[1672899002428,2.98347362,1252.7,1252.6,17.26770843]
[1672899003160,1.79025047,1252.7,1252.6,17.26770843]
[1672899003371,1.79025047,1252.7,1252.6,14.27872515]
[1672899003785,4.17763578,1252.7,1252.6,12.86374694]
[1672899003996,1.79025047,1252.7,1252.6,14.27849076]
[1672899007367,4.17763578,1252.7,1252.6,14.27849076]
[1672899008103,1.79025047,1252.7,1252.6,14.27849076]
[1672899009052,4.17763578,1252.7,1252.6,14.27849076]
[1672899009251,4.17763578,1252.7,1252.6,17.48629076]
[1672899011046,2.38738531,1252.7,1252.6,17.48629076]
[1672899011884,2.38738531,1252.7,1252.6,9.51329076]
[1672899012297,2.38738531,1252.7,1252.6,8.09854694]
[1672899012612,2.38738531,1252.7,1252.6,9.51333447]
[1672899013141,5.37174617,1252.7,1252.6,9.51333447]
[1672899013560,2.38738531,1252.7,1252.6,9.51333447]
[1672899013978,5.37174617,1252.7,1252.6,9.51333447]
[1672899015242,5.37272276,1252.7,1252.6,9.51334524]
[1672899015449,5.37271977,1252.7,1252.6,9.51334524]
[1672899015772,2.98436086,1252.7,1252.6,9.51334524]
[1672899016292,2.97988302,1252.7,1252.6,9.51334524]
[1672899016606,2.97988302,1252.7,1252.6,9.5133503]
[1672899016821,5.36822031,1252.7,1252.6,9.5133503]
[1672899017661,2.97988302,1252.7,1252.6,8.09854694]
[1672899019344,2.97988302,1252.7,1252.6,8.09652099]
[1672899019552,2.97988302,1252.7,1252.6,9.89152959]
[1672899019763,2.97988302,1252.7,1252.6,9.89152978]
[1672899019971,2.97988302,1252.7,1252.6,8.09652099]
[1672899020284,2.97988302,1252.7,1252.6,9.8915307]
[1672899022701,2.97988302,1252.7,1252.6,8.09652099]
[1672899022906,2.97988302,1252.7,1252.6,9.89153915]
[1672899023333,2.97988302,1252.7,1252.6,7.50079221]
[1672899024064,2.97988302,1252.7,1252.6,9.89153915]
[1672899024384,2.97988302,1252.7,1252.6,7.50079221]
[1672899024807,2.97988302,1252.7,1252.6,9.89153915]
[1672899025120,2.97988302,1252.7,1252.6,7.50079221]
[1672899026803,2.97988302,1252.7,1252.6,9.89153915]
[1672899027233,2.97988302,1252.7,1252.6,7.50079221]
[1672899028174,2.97988302,1252.7,1252.6,9.89153915]
[1672899028796,2.97988302,1252.7,1252.6,7.50079221]
[1672899029951,2.97988302,1252.7,1252.6,4.29299221]
[1672899030161,2.97988302,1252.7,1252.6,7.50079221]
[1672899030902,2.97988302,1252.7,1252.6,9.89153915]
[1672899032580,2.97988302,1252.7,1252.6,7.3935651]
[1672899033104,2.97988302,1252.7,1252.6,5.00281816]
[1672899034161,2.97988302,1252.7,1252.6,7.3935651]
[1672899035006,2.97988302,1252.7,1252.6,4.1857651]
[1672899035314,2.97988302,1252.7,1252.6,5.00281816]
[1672899036362,2.97988302,1252.7,1252.6,7.3935651]
[1672899037731,2.97988302,1252.7,1252.6,5.00281816]
[1672899040571,2.97988302,1252.7,1252.6,1.79501816]
[1672899040779,5.48424508,1252.7,1252.6,1.79501816]
[1672899040993,5.48424508,1252.7,1252.6,4.29501816]
[1672899043200,5.48424508,1252.7,1252.6,7.50281816]
[1672899044878,2.98424508,1252.7,1252.6,7.50281816]
[1672899045092,2.98424508,1252.7,1252.6,4.29501816]
[1672899045309,2.98424508,1252.7,1252.6,5.00281816]
[1672899046457,2.98424508,1252.7,1252.6,7.3935651]
[1672899047406,2.98424508,1252.7,1252.6,4.1857651]
[1672899047605,2.98424508,1252.7,1252.6,7.3935651]
[1672899048349,2.98424508,1252.7,1252.6,5.59854694]
[1672899049504,2.98424508,1252.7,1252.6,2.39074694]
[1672899049709,2.98424508,1252.7,1252.6,5.59854694]
[1672899050767,2.98424508,1252.7,1252.6,3.80556265]
[1672899050973,2.98424508,1252.7,1252.6,5.59854694]
[1672899051190,2.98424508,1252.7,1252.6,7.01336265]
[1672899051706,2.98424508,1252.7,1252.6,3.80556265]
[1672899051917,2.98424508,1252.7,1252.6,2.39074694]
[1672899052132,2.98424508,1252.7,1252.6,5.59854694]
[1672899052341,2.98424508,1252.7,1252.6,7.01336265]
[1672899055391,2.98424508,1252.7,1252.6,9.51336265]
[1672899055704,5.37355141,1252.7,1252.6,9.51336265]
[1672899055911,5.37354281,1252.7,1252.6,9.51336265]
[1672899056124,2.98424508,1252.7,1252.6,7.01336265]
[1672899058017,2.98424508,1252.7,1252.6,3.80556265]
[1672899058227,2.98424508,1252.7,1252.6,2.39074694]
[1672899058541,2.98424508,1252.7,1252.6,4.89074694]
[1672899058747,2.98424508,1252.7,1252.6,6.30556265]
[1672899059174,2.98424508,1252.7,1252.6,9.51336265]
[1672899059905,2.98424508,1252.7,1252.6,6.30556265]
[1672899060113,2.98424508,1252.7,1252.6,9.51336265]
[1672899060324,2.98424508,1252.7,1252.6,9.89410003]
[1672899060636,2.98424508,1252.7,1252.6,9.51335565]
[1672899066320,5.3732291,1252.7,1252.6,9.51335565]
[1672899067172,5.37321643,1252.7,1252.6,9.51335565]
[1672899067488,2.98424508,1252.7,1252.6,9.51335565]
[1672899067704,5.37321727,1252.7,1252.6,9.51335565]
[1672899068011,2.98424508,1252.7,1252.6,9.51335565]
[1672899070006,2.98424508,1252.7,1252.6,6.30555565]
[1672899070210,2.98424508,1252.7,1252.6,9.51335565]
[1672899070421,5.37315068,1252.7,1252.6,9.51335565]
[1672899071370,5.37315068,1252.7,1252.6,6.30555565]
[1672899071692,5.37315068,1252.7,1252.6,9.51335565]
[1672899072212,2.98424508,1252.7,1252.6,9.51335565]
[1672899072739,5.37314153,1252.7,1252.6,9.51335565]
[1672899073156,5.37314153,1252.7,1252.6,6.30555565]
[1672899073368,5.37314153,1252.7,1252.6,9.51335565]
[1672899074003,5.37314153,1252.7,1252.6,6.30555565]
[1672899074211,5.37314153,1252.7,1252.6,9.51335565]
[1672899074423,2.98424508,1252.7,1252.6,9.51335565]
[1672899074634,5.37306273,1252.7,1252.6,9.51335565]
[1672899075057,5.37306273,1252.7,1252.6,6.30555565]
[1672899075258,5.37306273,1252.7,1252.6,9.51335565]
[1672899076207,5.37306273,1252.7,1252.6,6.30555565]
[1672899076417,2.98424508,1252.7,1252.6,9.51335565]
[1672899076624,5.37299711,1252.7,1252.6,9.51335565]
[1672899076829,2.98424508,1252.7,1252.6,9.51335565]
[1672899077040,2.98424508,1252.7,1252.6,7.01335565]
[1672899077462,2.98424508,1252.7,1252.6,5.59854694]
[1672899077677,2.98424508,1252.7,1252.6,7.01335788]
[1672899077883,2.98424508,1252.7,1252.6,7.01334806]
[1672899078094,5.37301728,1252.7,1252.6,7.01334806]
[1672899079465,5.37301728,1252.7,1252.6,9.51334806]
[1672899079777,2.3887722,1252.7,1252.6,10.1115844]
[1672899082299,2.3887722,1252.7,1252.6,12.50513071]
[1672899082617,2.3887722,1252.7,1252.6,10.1115844]
[1672899084081,2.3887722,1252.7,1252.6,6.9037844]
[1672899084298,2.3887722,1252.7,1252.6,12.50530524]
[1672899084615,2.3887722,1252.7,1252.6,10.1115844]
[1672899090391,2.38080671,1252.7,1252.6,10.1115844]
[1672899090601,2.38080671,1252.7,1252.6,12.5054689]
[1672899093119,2.38080671,1252.7,1252.6,9.2976689]
[1672899093333,2.38080671,1252.7,1252.6,12.5054689]
[1672899093540,2.38080671,1252.7,1252.6,10.1115844]
[1672899094697,2.38080671,1252.7,1252.6,12.50555403]
[1672899096279,2.38080671,1252.7,1252.6,9.29775403]
[1672899096483,2.38080671,1252.7,1252.6,10.00555403]
[1672899098065,2.38080671,1252.7,1252.6,6.79775403]
[1672899098274,2.38080671,1252.7,1252.6,10.00555403]
[1672899100169,2.38080671,1252.7,1252.6,7.6115844]
[1672899100589,2.38080671,1252.7,1252.6,10.00567542]
[1672899100904,2.38080671,1252.7,1252.6,6.79787542]
[1672899101115,2.38080671,1252.7,1252.6,10.00567542]
[1672899102055,2.38080671,1252.7,1252.6,7.6115844]
[1672899108999,2.38080671,1252.7,1252.6,4.4037844]
[1672899109214,2.38080671,1252.7,1252.6,7.6115844]
[1672899109411,2.38080671,1252.7,1252.6,4.4037844]
[1672899109627,2.38080671,1252.7,1252.6,7.6115844]
[1672899110052,1.79194145,1252.7,1252.6,7.6115844]
[1672899110256,1.79194145,1252.7,1252.6,7.6144152]
[1672899111838,1.79194145,1252.7,1252.6,4.4066152]
[1672899112052,1.79194145,1252.7,1252.6,7.6144152]
[1672899119305,1.79194145,1252.7,1252.6,15.5874152]
[1672899120357,4.18071541,1252.7,1252.6,15.5874152]
[1672899121514,1.79194145,1252.7,1252.6,15.5874152]
[1672899121932,4.18071541,1252.7,1252.6,15.5874152]
[1672899122352,1.79194145,1252.7,1252.6,15.5874152]
[1672899122667,4.18071541,1252.7,1252.6,15.5874152]
[1672899123926,1.79194145,1252.7,1252.6,15.5874152]
[1672899125182,2.98630362,1252.7,1252.6,12.59560112]
[1672899126976,1.19436217,1252.7,1252.6,12.59560112]
[1672899127290,2.98630362,1252.7,1252.6,12.59560112]
[1672899128029,2.98630362,1252.7,1252.6,15.58668213]
[1672899128234,1.79194145,1252.7,1252.6,15.58668213]
[1672899128973,2.98609729,1252.7,1252.6,15.58668213]
[1672899129293,2.98609995,1252.7,1252.6,15.58668213]
[1672899129504,1.79194145,1252.7,1252.6,15.58668213]
[1672899130759,2.98608408,1252.7,1252.6,15.58668213]
[1672899131591,1.19414263,1252.7,1252.6,12.59560112]
[1672899136114,2.98608408,1252.7,1252.6,12.59560112]
[1672899136961,1.19414263,1252.7,1252.6,12.59560112]
[1672899141278,2.98608408,1252.7,1252.6,12.59560112]
[1672899141489,1.19414263,1252.7,1252.6,12.59560112]
[1672899144219,1.19414263,1252.7,1252.6,9.38780112]
[1672899144429,1.19414263,1252.7,1252.6,12.59560112]
[1672899144851,2.98608408,1252.7,1252.6,12.59560112]
[1672899145165,2.98608408,1252.7,1252.6,9.38780112]
[1672899145378,2.98608408,1252.7,1252.6,12.59560112]
[1672899146426,1.19414263,1252.7,1252.6,12.59560112]
[1672899148417,2.98608408,1252.7,1252.6,12.59560112]
[1672899151364,1.79194145,1252.7,1252.6,12.59560112]
[1672899152097,1.79194145,1252.7,1252.6,9.38780112]
[1672899152312,1.79194145,1252.7,1252.6,12.59560112]
[1672899152523,2.98632733,1252.7,1252.6,12.59560112]
[1672899153998,1.79194145,1252.7,1252.6,12.59560112]
[1672899154722,2.98637964,1252.7,1252.6,12.59560112]
[1672899154934,1.79194145,1252.7,1252.6,12.59560112]
[1672899155675,2.9863939,1252.7,1252.6,12.59560112]
[1672899156406,1.79194145,1252.7,1252.6,12.59560112]
[1672899157147,1.79194145,1252.7,1252.6,9.38780112]
[1672899157358,1.79194145,1252.7,1252.6,12.59560112]
[1672899160610,1.1946281,1252.7,1252.6,16.18109601]
[1672899160822,1.19471919,1252.8,1252.6,20.36417338]
[1672899161035,2.5,1252.9,1252.7,15.47329601]
[1672899161242,2.5,1252.9,1252.8,10.11288983]
[1672899161449,4.88877396,1253.0,1252.8,10.11288983]
[1672899161661,4.88877396,1253.0,1252.9,6.3070237]
[1672899162921,2.38877396,1253.0,1252.9,6.3070237]
[1672899165137,2.38877396,1253.0,1252.9,9.5148237]
[1672899166496,5.37301904,1253.1,1252.9,17.4878237]
[1672899166705,1.19364501,1253.0,1252.9,16.67108871]
[1672899166912,1.19364501,1253.0,1252.9,18.08534624]
[1672899168282,1.19364501,1253.1,1252.9,18.08534624]
[1672899168493,1.19364501,1253.1,1253.0,6.30337913]
[1672899169019,1.19364501,1253.1,1253.0,8.0969216]
[1672899169438,1.19364501,1253.1,1253.0,4.8891216]
[1672899169754,7.87301904,1253.2,1253.0,7.4990299]
[1672899169964,7.87301904,1253.2,1253.1,1.19418791]
[1672899170389,7.86926166,1253.2,1253.1,1.19418791]
[1672899172067,7.86926166,1253.2,1253.0,8.69321781]
[1672899172488,7.86926166,1253.2,1253.1,3.2078]
[1672899174275,7.86926166,1253.2,1253.0,5.48541781]
[1672899174481,7.86926166,1253.2,1253.1,3.2078]
[1672899175107,4.88501658,1253.2,1253.1,3.2078]
[1672899175327,4.88501658,1253.2,1253.0,5.48541781]
[1672899175543,4.88501658,1253.2,1253.1,3.2078]
[1672899177334,7.86926166,1253.2,1253.1,3.2078]
[1672899179533,2.5,1253.1,1252.9,8.69321781]
[1672899179747,1.19191858,1253.0,1252.9,7.4990299]
[1672899179953,3.19191858,1253.0,1252.9,7.4990299]
[1672899180170,2.0,1253.0,1252.9,8.69272468]
[1672899181745,3.19183546,1253.0,1252.9,8.69272468]
[1672899181956,2.0,1253.0,1252.9,8.69272468]
[1672899182166,3.1918432,1253.0,1252.9,8.69272468]
[1672899182376,3.1918432,1253.0,1252.9,7.4990299]
[1672899182692,1.1918432,1253.0,1252.9,7.4990299]
[1672899183528,2.38383716,1253.0,1252.9,3.2078]
[1672899183741,4.38383716,1253.0,1252.9,3.2078]
[1672899184154,7.36808224,1253.0,1252.9,3.2078]
[1672899184573,4.38383716,1253.0,1252.9,3.2078]
[1672899184784,7.36808224,1253.0,1252.9,3.2078]
[1672899184998,4.38383716,1253.0,1252.9,3.2078]
[1672899185210,7.36808224,1253.0,1252.9,3.2078]
[1672899185634,4.98424508,1253.0,1252.8,1.19377292]
[1672899185845,2.38379051,1252.9,1252.8,1.19377292]
[1672899189104,2.38379051,1252.9,1252.8,4.40157292]
[1672899190893,7.36803559,1253.0,1252.8,6.19280282]
[1672899191311,2.38379051,1252.9,1252.8,6.19280282]
[1672899192364,2.38379051,1252.9,1252.8,4.40157292]
[1672899192889,2.38379051,1252.9,1252.8,6.19280282]
[1672899193097,2.38379051,1252.9,1252.8,4.40157292]
[1672899194889,2.38379051,1252.9,1252.8,2.98500282]
[1672899195097,2.38379051,1252.9,1252.8,1.19377292]
[1672899195412,2.38379051,1252.9,1252.8,4.40157292]
[1672899196141,2.38379051,1252.9,1252.8,1.19377292]
[1672899196351,2.38379051,1252.9,1252.8,4.40157292]
[1672899196773,2.38379051,1252.9,1252.8,6.19280282]
[1672899197949,2.38379051,1252.9,1252.8,4.40157292]
[1672899198470,2.38379051,1252.9,1252.8,1.19377292]
[1672899200151,2.38379051,1252.9,1252.8,4.40157292]
[1672899202353,2.38379051,1252.9,1252.8,6.19280282]
[1672899202880,7.36803559,1253.0,1252.8,6.19280282]
[1672899204456,4.38379051,1253.0,1252.8,6.19280282]
[1672899204771,7.36803559,1253.0,1252.8,6.19280282]
[1672899205299,4.38379051,1253.0,1252.8,6.19280282]
[1672899206035,4.38379051,1253.0,1252.9,1.19377292]
[1672899206351,4.38379051,1253.0,1252.9,2.5]
[1672899206352,2.38379051,1253.0,1252.9,2.5]
[1672899206556,2.38379051,1253.0,1252.9,3.69377292]
[1672899208233,5.36803559,1253.0,1252.9,1.19377292]
[1672899208444,2.98424508,1253.0,1252.8,8.69280282]
[1672899208655,2.0,1252.9,1252.8,8.69280282]
[1672899208866,4.38536351,1252.9,1252.8,8.69280282]
[1672899209082,4.38536351,1252.9,1252.8,7.4990299]
[1672899209506,4.38536351,1252.9,1252.8,8.69359831]
[1672899211083,4.38536351,1252.9,1252.8,7.4990299]
[1672899211819,2.38536351,1252.9,1252.8,7.4990299]
[1672899216015,2.38536351,1252.9,1252.8,4.9990299]
[1672899217070,5.36960859,1252.9,1252.8,4.9990299]
[1672899217284,5.36960859,1252.9,1252.8,7.3881515]
[1672899217593,2.38536351,1252.9,1252.8,7.3881515]
[1672899219168,2.98424508,1252.9,1252.8,5.5969216]
[1672899222004,2.98424508,1252.9,1252.8,7.01150526]
[1672899222639,5.37402787,1252.9,1252.8,7.01150526]
[1672899222953,2.98424508,1252.9,1252.8,7.01150526]
[1672899225370,2.98424508,1252.9,1252.8,3.80370526]
[1672899225582,2.98424508,1252.9,1252.8,7.01150526]
[1672899227788,2.98424508,1252.9,1252.8,10.00179397]
[1672899228836,2.98424508,1252.9,1252.8,7.01150526]
[1672899229048,2.98424508,1252.9,1252.8,10.00179397]
[1672899229368,5.37531108,1252.9,1252.8,10.00179397]
[1672899231260,5.37027031,1252.9,1252.8,10.00179397]
[1672899231568,2.97920431,1252.9,1252.8,10.00179397]
[1672899232415,2.97920431,1252.9,1252.8,6.79399397]
[1672899232625,2.97920431,1252.9,1252.8,10.00179397]
[1672899232827,2.97920431,1252.9,1252.8,7.01150526]
[1672899233780,2.97920431,1252.9,1252.8,3.80370526]
[1672899233988,2.97920431,1252.9,1252.8,7.01150526]
[1672899234297,2.97920431,1252.9,1252.8,3.80370526]
[1672899234512,2.97920431,1252.9,1252.8,7.01150526]
[1672899237242,2.97920431,1252.9,1252.8,3.80370526]
[1672899237447,2.97920431,1252.9,1252.8,7.01150526]
[1672899239134,2.97920431,1252.9,1252.8,3.80370526]
[1672899239340,2.97920431,1252.9,1252.8,7.01150526]
[1672899239972,2.97920431,1252.9,1252.8,10.00179397]
[1672899240394,2.97920431,1252.9,1252.8,7.01150526]
[1672899240609,2.97920431,1252.9,1252.8,10.00179397]
[1672899244073,2.97920431,1252.9,1252.8,6.79399397]
[1672899244288,2.97920431,1252.9,1252.8,10.00179397]
[1672899244494,5.37080809,1252.9,1252.8,7.61267237]
[1672899244703,5.37081122,1252.9,1252.8,7.61267237]
[1672899244917,2.97920431,1252.9,1252.8,10.00694343]
[1672899245444,2.39156049,1252.9,1252.8,7.61267237]
[1672899249433,2.39156049,1252.9,1252.8,4.40487237]
[1672899249642,2.39156049,1252.9,1252.8,7.61267237]
[1672899256370,2.39156049,1252.9,1252.8,4.40487237]
[1672899256678,2.39156049,1252.9,1252.8,7.61267237]
[1672899266566,4.18422343,1252.9,1252.8,7.61267237]
[1672899269513,2.39156049,1252.9,1252.8,7.61267237]
[1672899269725,4.18415106,1252.9,1252.8,7.61267237]
[1672899272035,4.18415106,1252.9,1252.8,4.40487237]
[1672899272245,4.18415106,1252.9,1252.8,7.61267237]
[1672899273503,2.39156049,1252.9,1252.8,7.61267237]
[1672899273930,4.18442563,1252.9,1252.8,7.61267237]
[1672899274974,4.18442563,1252.9,1252.8,4.40487237]
[1672899275188,4.18442563,1252.9,1252.8,7.61267237]
[1672899275916,4.18442563,1252.9,1252.8,15.58567237]
[1672899276452,1.79286514,1252.9,1252.8,15.58567237]
[1672899277503,4.18442563,1252.9,1252.8,15.58567237]
[1672899277705,1.79286514,1252.9,1252.8,15.58567237]
[1672899279185,4.18442563,1252.9,1252.8,15.58567237]
[1672899280019,1.79286514,1252.9,1252.8,12.59538366]
[1672899282451,1.79286514,1252.9,1252.8,9.38758366]
[1672899282662,1.79286514,1252.9,1252.8,15.09538366]
[1672899285294,1.79286514,1252.9,1252.8,11.88758366]
[1672899285499,1.79286514,1252.9,1252.8,15.09538366]
[1672899286127,1.79286514,1252.9,1252.8,16.9815315]
[1672899287813,2.98822195,1252.9,1252.8,16.9815315]
[1672899289808,1.19535681,1252.9,1252.8,16.9815315]
[1672899290017,1.19535681,1252.9,1252.8,20.56702639]
[1672899290219,1.19535681,1252.9,1252.8,16.9815315]
[1672899292751,2.98822195,1252.9,1252.8,16.9815315]
[1672899292964,1.19535681,1252.9,1252.8,16.9815315]
[1672899294220,2.98822195,1252.9,1252.8,16.9815315]
[1672899294544,1.19535681,1252.9,1252.8,13.7737315]
[1672899294743,1.19535681,1252.9,1252.8,15.09538366]
[1672899294953,1.19535681,1252.9,1252.8,13.7737315]
[1672899295167,1.19535681,1252.9,1252.8,15.09538366]
[1672899295373,1.19535681,1252.9,1252.8,16.9815315]
[1672899295794,1.18835737,1252.9,1252.8,16.9815315]
[1672899299471,1.18835737,1252.9,1252.8,15.09538366]
[1672899299685,1.18835737,1252.9,1252.8,16.9815315]
[1672899300315,1.18835737,1252.9,1252.8,20.56702639]
[1672899300529,1.79286514,1253.0,1252.8,16.9815315]
[1672899300845,1.79286514,1253.0,1252.9,14.87781517]
[1672899302315,4.18442563,1253.0,1252.9,14.87781517]
[1672899302527,1.79286514,1253.0,1252.9,14.87781517]
[1672899302737,4.18442563,1253.0,1252.9,14.87781517]
[1672899303467,4.18442563,1253.0,1252.9,18.08561517]
[1672899303890,4.18442563,1253.0,1252.9,14.87781517]
[1672899304207,4.18442563,1253.0,1252.9,18.08561517]
[1672899307255,2.39156049,1253.0,1252.9,18.08561517]
[1672899310932,4.18398604,1253.0,1252.9,18.08561517]
[1672899311136,1.79242555,1253.0,1252.9,18.08561517]
[1672899312086,4.18398604,1253.0,1252.9,18.08561517]
[1672899312297,1.79242555,1253.0,1252.9,18.08561517]
[1672899313235,4.18398604,1253.0,1252.9,18.08561517]
[1672899313561,1.79242555,1253.0,1252.9,18.08561517]
[1672899313874,4.18398604,1253.0,1252.9,18.08561517]
[1672899314713,4.18423195,1253.0,1252.9,18.08561517]
[1672899314925,2.39156049,1253.0,1252.9,18.08561517]
[1672899315229,4.18423912,1253.0,1252.9,18.08561517]
[1672899315445,4.18425527,1253.0,1252.9,18.08561517]
[1672899315762,1.79269478,1253.0,1252.9,18.08561517]
[1672899316290,4.18425527,1253.0,1252.9,18.08561517]
[1672899317340,4.18425527,1253.0,1252.9,14.87781517]
[1672899317544,4.18425527,1253.0,1252.9,18.08561517]
[1672899320178,4.18425527,1253.0,1252.9,15.09538366]
[1672899320391,4.18425527,1253.0,1252.9,18.0871849]
[1672899321443,1.79269478,1253.0,1252.9,15.09538366]
[1672899321754,4.18425527,1253.0,1252.9,18.08713213]
[1672899321963,1.79269478,1253.0,1252.9,15.09538366]
[1672899322171,4.18425527,1253.0,1252.9,18.08713925]
[1672899322380,4.1846251,1253.0,1252.9,18.08713925]
[1672899322802,2.39156049,1253.0,1252.9,18.08713925]
[1672899323749,4.18463302,1253.0,1252.9,18.08713925]
[1672899324488,2.39156049,1253.0,1252.9,15.58713925]
[1672899325848,2.39156049,1253.0,1252.9,7.61413925]
[1672899326058,2.98839691,1253.0,1252.9,7.01618033]
[1672899327118,2.98839691,1253.0,1252.9,10.00793592]
[1672899327325,2.98839691,1253.0,1252.9,7.01618033]